[Event "5th Vera Menchik Memorial 2022"]
[Site "Prag"]
[Date "2022.06.05"]
[Round "1.16"]
[White "Hozda, Max"]
[Black "Dubansky, Bohuslav"]
[Result "0-1"]
[ECO "D32"]
[WhiteElo "1832"]
[BlackElo "2223"]
[Annotator "TA"]
[PlyCount "122"]
[EventDate "2022.06.05"]
[EventType "tourn"]
[EventCountry "CZE"]
[SourceTitle "playchess.com"]
[Source "ChessBase"]
[SourceQuality "1"]
[TimeControl "720+3"]

{[%evp 19,122,22,35,25,34,-15,-25,-17,-15,-18,-8,-44,-28,-54,-21,-15,-15,-54,-43,-66,-50,-36,-28,-96,-39,-93,-73,-70,-29,-66,-46,-86,-62,-79,-79,-65,-43,-304,-66,-115,-112,-123,-121,-138,-116,-155,-71,-108,-81,-96,-96,-91,-77,-153,-155,-154,-153,-145,-151,-191,-168,-218,-209,-250,-271,-304,-286,-503,-443,-707,-829,-1160,-1148,-1105,-829,-6087,-5518,-5908,-5651,-5522,-5369,-5387,-4907,-2681,-2233,-2654,-1835,-29963,-29965,-29959,-29962,-5185,-2534,-29969,-29970,-29972,-29972,-29975,-29976,-29977,-29978,-29976,-29975,-29968,-6090]} 1. d4 {[%emt 0:00:04]} d5 {[%emt 0:00:01]} 2. c4 {[%emt 0:00:03]} e6 {[%emt 0:00:02]} 3. Nc3 {[%emt 0:00:03]} c5 {[%emt 0:00:02]} 4. cxd5 {[%emt 0:00:23]} exd5 {[%emt 0:00:02]} 5. Nf3 {[%emt 0:00:08]} Nc6 {[%emt 0:00:01]} 6. e3 {[%emt 0:00:45]} Nf6 {[%emt 0:00:05]} 7. Be2 {[%emt 0:00:37]} Be7 {[%emt 0:00:13]} 8. O-O {[%emt 0:00:03]} O-O {[%emt 0:00:01]} 9. b3 {[%emt 0:00:13]} Ne4 {[%emt 0:01:06]} 10. Bb2 {[%emt 0:00:22]} Bf6 {[%emt 0:00:03]} 11. Rc1 {[%emt 0:02:10] D32: Tarrasch Defence: Sidelines and lines without g3.} cxd4 {[%emt 0:00:16]} 12. Nxd4 {[%emt 0:01:17]} (12. Nxe4 $14 dxe4 13. Nxd4) 12... Nxd4 $11 {[%emt 0:00:16]} 13. exd4 {[%emt 0:00:11] Black has an edge.} Bf5 {[%emt 0:00:30] [#]} 14. a4 $146 {[%emt 0:01:04]} ({Predecessor:} 14. Nxe4 dxe4 15. Ba3 Re8 16. Bb5 Re6 17. d5 Re5 18. Bc4 b5 19. Bxb5 Rxd5 20. Qe2 {0-1 (39) Vedral,O (2252)-Netusil,M (2333) Prague 2005}) 14... a6 {[%emt 0:00:18]} 15. b4 {[%emt 0:00:33]} Re8 {[%emt 0:00:18]} 16. b5 {[%emt 0:00:32]} h6 {[%emt 0:00:25]} (16... Bg5 $5 {[%cal Rg5c1]} 17. f4 Nxc3 18. Bxc3 Bf6 $15) 17. Nxe4 {[%emt 0:00:57]} Bxe4 {[%emt 0:00:09]} 18. Bd3 {[%emt 0:00:18]} (18. g3 {feels hotter.} Qd6 19. Qb3 axb5 20. Qxb5 Bg5 21. Rc5) 18... Qb6 {[%emt 0:00:18]} 19. Bxe4 {[%emt 0:00:45]} Rxe4 {[%emt 0:00:07]} 20. Rc5 {[%emt 0:00:07]} Rd8 {[%emt 0:01:51]} 21. Qd2 {[%emt 0:00:26] [#]} (21. Qd3 $11 {remains equal.}) 21... Qe6 {[%emt 0:00:48]} (21... Be7 $1 $17 {[%cal Re7c5]} 22. a5 Qe6) 22. Rc2 {[%emt 0:00:42]} (22. Qd3 $15) 22... Re8 {[%emt 0:00:11]} 23. Qd3 {[%emt 0:00:27]} g6 {[%emt 0:00:39]} 24. h3 {[%emt 0:00:22]} Kg7 {[%emt 0:00:03]} 25. bxa6 {[%emt 0:00:32]} bxa6 {[%emt 0:00:01]} 26. Rfc1 {[%emt 0:00:06]} Qd6 {[%emt 0:00:49] aiming for ...Re1+.} 27. g3 {[%emt 0:00:14]} Qb6 {[%emt 0:00:55][%cal Rf6d4]} 28. Rd2 $2 {[%emt 0:00:00][%mdl 8192]} ({White should try} 28. Kg2 $15) 28... Qb4 $2 {[%emt 0:00:16]} (28... Bg5 $19 29. Bc3 (29. f4 $2 Re3 $19) 29... Bxd2 30. Bxd2 Re2) 29. Ra1 {[%emt 0:00:02]} (29. Rc5 $15 {deserves consideration.}) 29... Re1+ $17 {[%emt 0:00:06]} 30. Rxe1 {[%emt 0:00:01]} Rxe1+ {[%emt 0:00:01]} 31. Kg2 {[%emt 0:00:01]} Qxa4 {[%emt 0:00:02] 0x0.000bd5b46accdp-1022s more active pieces.} 32. Bc3 {[%emt 0:00:03]} Re4 {[%emt 0:00:10]} (32... Rc1 $142 33. h4 a5) 33. Qf3 {[%emt 0:00:06]} Qc4 {[%emt 0:00:21]} (33... Bxd4 $2 34. Bxd4+ Rxd4 35. Qc3 $18) 34. Qd3 {[%emt 0:00:04]} Qxd3 {[%emt 0:00:17]} 35. Rxd3 {[%emt 0:00:01][%mdl 4096] Endgame KRB-KRB} Re2 {[%emt 0:00:05]} 36. Kf3 {[%emt 0:00:02] [#]} (36. Bd2 $142) 36... Ra2 $1 {[%emt 0:00:01]} 37. Bb4 {[%emt 0:00:04]} a5 {[%emt 0:00:07][%cal Ba6a5,Ba5a4,Ba4b3][%mdl 32]} 38. Bc5 {[%emt 0:00:01]} a4 {[%emt 0:00:00] Prevents Rb3.} 39. Ke3 {[%emt 0:00:03]} Bd8 {[%emt 0:00:07]} 40. Bb4 {[%emt 0:00:03]} (40. Kf3 $142) 40... Rb2 $19 {[%emt 0:00:10]} 41. Bc5 {[%emt 0:00:03]} Ba5 {[%emt 0:00:13]} 42. Ra3 {[%emt 0:00:02]} Rb3+ {[%emt 0:00:01]} 43. Rxb3 $2 {[%emt 0:00:02]} (43. Ke2 {is the only way for White.} Rxa3 44. Bxa3) 43... axb3 {[%emt 0:00:01] KB-KB} 44. Kd3 {[%emt 0:00:03]} (44. Ba3 $142 Bc3 45. Kd3) 44... Be1 {[%emt 0:00:04]} 45. Bd6 {[%emt 0:00:07]} Bxf2 {[%emt 0:00:05]} 46. Kc3 {[%emt 0:00:01]} f6 {[%emt 0:00:09]} 47. g4 {[%emt 0:00:07]} b2 {[%emt 0:00:07]} 48. Kxb2 {[%emt 0:00:01]} Bxd4+ {[%emt 0:00:01]} 49. Kc2 {[%emt 0:00:01]} Be5 {[%emt 0:00:01]} 50. Bc5 {[%emt 0:00:02]} Kf7 {[%emt 0:02:38]} 51. Kd3 {[%emt 0:00:01]} Ke6 {[%emt 0:00:03]} 52. Bf8 h5 {[%emt 0:00:00]} 53. gxh5 {[%emt 0:00:05]} gxh5 {[%emt 0:00:00]} 54. Bh6 {[%emt 0:00:02]} Kf5 {[%emt 0:00:09]} 55. Be3 {[%emt 0:00:04]} Bb8 {[%emt 0:00:00]} (55... Bd6 $142 56. Kd4 Bf4) 56. Bd2 {[%emt 0:00:01]} Ba7 {[%emt 0:00:00] Black mates.} 57. Bh6 {[%emt 0:00:04]} Ke5 {[%emt 0:00:00]} 58. Bd2 {[%emt 0:00:08]} f5 {[%emt 0:00:00][%cal Bf6f5,Bf5f4,Bf4f3][%mdl 32]} 59. Bg5 {[%emt 0:00:06]} f4 {[%emt 0:00:00]} 60. Bh4 {[%emt 0:00:04]} f3 {[%emt 0:00:00]} 61. Bg3+ {[%emt 0:00:01]} Kf5 {[%emt 0:00:00] Weighted Error Value: White=0.90/Black=0.46} 0-1

[Event "5th Vera Menchik Memorial 2022"]
[Site "Prag"]
[Date "2022.06.05"]
[Round "2.1"]
[White "Bauma, Jiri"]
[Black "Plat, Vojtech"]
[Result "0-1"]
[ECO "A53"]
[WhiteElo "2135"]
[BlackElo "2547"]
[Annotator "TA"]
[PlyCount "52"]
[EventDate "2022.06.05"]
[EventType "tourn"]
[EventCountry "CZE"]
[SourceTitle "playchess.com"]
[Source "ChessBase"]
[SourceQuality "1"]
[TimeControl "720+3"]

{[%evp 13,52,33,52,32,46,43,59,34,72,22,65,31,44,0,0,-127,-114,-137,-123,-191,-195,-216,-219,-187,-199,-172,-184,-290,-281,-392,-357,-369,-120,-580,-570,-583,-499,-473,-460,-587,-556]} 1. e4 {[%emt 0:00:02]} d6 {[%emt 0:00:02]} 2. d4 {[%emt 0:00:02]} Nf6 {[%emt 0:00:01]} 3. f3 {[%emt 0:00:01]} e5 {[%emt 0:00:02]} 4. d5 {[%emt 0:00:02]} Be7 {[%emt 0:00:02]} 5. Be3 {[%emt 0:00:05]} c6 {[%emt 0:00:02]} 6. c4 {[%emt 0:00:01]} O-O {[%emt 0:00:02]} 7. Nc3 {[%emt 0:00:04]} Nbd7 {[%emt 0:00:02]} 8. Bd3 {[%emt 0:00:08] A53: Old Indian Defence without Nf3.} a5 {[%emt 0:00:07]} 9. Nge2 {[%emt 0:00:04]} Nc5 {[%emt 0:00:03]} 10. Bc2 {[%emt 0:00:02] White is slightly better.} cxd5 {[%emt 0:00:13]} 11. cxd5 {[%emt 0:00:04]} (11. exd5 $16 Nfd7 12. O-O) 11... b6 {[%emt 0:00:05][%cal Bb7b6,Bb6b5][%mdl 32]} 12. Qd2 {[%emt 0:00:08]} Ba6 {[%emt 0:00:03] [#]} 13. g4 $146 {[%emt 0:00:06]} ({Predecessor:} 13. O-O Nfd7 14. Rfc1 b5 15. a3 b4 16. axb4 axb4 17. Na4 b3 18. Nxc5 Nxc5 19. Bxc5 dxc5 20. Bxb3 {0-1 (25) Storey,C (2220)-Williams,S (2464) Chess.com INT 2022}) 13... Nfd7 {[%emt 0:00:21]} 14. O-O-O {[%emt 0:00:07] [#]} (14. Ng3 $11 {remains equal.}) 14... b5 $1 $17 {[%emt 0:00:02]} 15. Kb1 {[%emt 0:00:11]} Rb8 {[%emt 0:00:09]} (15... b4 $6 16. Na4 $11) 16. h4 {[%emt 0:00:04]} (16. Nc1 $17 {keeps fighting.}) 16... b4 $19 {[%emt 0:00:01]} (16... Bxh4 17. g5 b4 18. Rxh4 $16) 17. Na4 {[%emt 0:00:10]} b3 {[%emt 0:00:01]} ({Stronger than} 17... Bxh4 18. Nxc5 Nxc5 19. Nc1 $11) 18. axb3 {[%emt 0:00:11]} Nxb3 {[%emt 0:00:09]} 19. Bxb3 {[%emt 0:00:20]} Rxb3 {[%emt 0:00:02]} 20. Nec3 {[%emt 0:00:14]} (20. Ng3 {is a better defense.}) 20... Qb8 {[%emt 0:00:04] ...Qb4 is the strong threat.} ({Don't do} 20... Bxh4 21. g5 Bg3 22. Rdg1 $18) 21. h5 {[%emt 0:00:20]} Rc8 {[%emt 0:00:03]} 22. g5 {[%emt 0:00:25]} Bb5 $2 {[%emt 0:00:06] [#]} (22... Qb4 $19 {and Black stays clearly on top.} 23. Rc1 Rb8) 23. g6 $2 {[%emt 0:00:26][%mdl 8192] Now White is beyond hope.} (23. Rc1 $17) 23... Bxa4 {[%emt 0:00:12] Black is clearly winning.} 24. Nxa4 {[%emt 0:00:01]} Qb5 {[%emt 0:00:03]} 25. Rc1 {[%emt 0:01:42]} Rb8 {[%emt 0:00:01]} ({But not} 25... Rxc1+ $2 26. Rxc1 Qxa4 27. Rc8+ Bf8 28. gxf7+ Kxf7 29. h6 $19) 26. gxf7+ {[%emt 0:01:49]} Kxf7 {[%emt 0:00:14] Weighted Error Value: White=0.86/Black=0.22 (precise)} 0-1

[Event "5th Vera Menchik Memorial 2022"]
[Site "Prag"]
[Date "2022.06.05"]
[Round "2.3"]
[White "Zima, Jan"]
[Black "Jirovsky, Milos"]
[Result "0-1"]
[ECO "B01"]
[WhiteElo "2134"]
[BlackElo "2458"]
[Annotator "TA"]
[PlyCount "108"]
[EventDate "2022.06.05"]
[EventType "tourn"]
[EventCountry "CZE"]
[SourceTitle "playchess.com"]
[Source "ChessBase"]
[SourceQuality "1"]
[TimeControl "720+3"]

{[%evp 10,108,55,0,17,0,-14,0,16,-49,-27,-37,-25,-44,-39,-70,-65,-61,-60,-67,-64,-74,-53,-71,-60,-53,-46,-66,-65,-66,-71,-70,-64,-78,-71,-70,-66,-77,-47,-72,-52,-60,-55,-71,-52,-82,-58,-78,-75,-77,-84,-102,-109,-101,-81,-104,-100,-173,-176,-143,-118,-175,-40,-43,-29,-32,-42,-94,0,-67,-68,-617,-515,-455,-97,-1564,-1406,-12822,-7676,-6540,-3050,-1875,-1745,-12842,-12842,-12843,-12842,-12842,-12843,-12843,-12843,-12844,-12844,-12845,-12845,-12845,-12846,-12846,-12845,-12847,-12847]} 1. e4 {[%emt 0:00:02]} d5 {[%emt 0:00:01]} 2. exd5 {[%emt 0:00:02]} Qxd5 {[%emt 0:00:00]} 3. Nc3 {[%emt 0:00:01]} Qd6 {[%emt 0:00:01]} 4. d4 {[%emt 0:00:03]} Nf6 {[%emt 0:00:01]} 5. Bc4 {[%emt 0:00:01]} a6 {[%emt 0:00:01]} 6. Nge2 {[%emt 0:00:05]} (6. Nf3 $14) 6... b5 {[%emt 0:00:02] 6...Qc6 is not played anymore. B01: Scandinavian Defence.} (6... Qc6 $5 {[%cal Rc6c4]} 7. Qd3 Qxg2 $11) 7. Bb3 {[%emt 0:00:01]} Bb7 {[%emt 0:00:00]} 8. Bf4 {[%emt 0:00:06]} Qb6 {[%emt 0:00:01] The position is equal.} 9. d5 {[%emt 0:00:23]} (9. a4 $11) 9... c5 {[%emt 0:00:07] [#] aiming for ...c4.} 10. dxc6 $146 {[%emt 0:01:13]} ({Predecessor:} 10. a3 c4 11. Ba2 Qc5 12. b4 Qb6 13. O-O g6 14. Qd2 Bg7 15. Rad1 O-O 16. Be3 {1-0 (40) Bitalzadeh,M (1848)-Verweij,F (1708) Haarlem 2011}) 10... Nxc6 {[%emt 0:00:03]} 11. Qd3 {[%emt 0:00:49]} e6 {[%emt 0:00:06]} 12. Qh3 {[%emt 0:00:12]} Na5 {[%emt 0:01:02]} 13. O-O {[%emt 0:00:15]} Be7 {[%emt 0:00:22]} 14. Be3 {[%emt 0:00:28]} Qc7 {[%emt 0:00:06]} 15. Qg3 {[%emt 0:01:05]} Qxg3 {[%emt 0:00:15]} 16. hxg3 {[%emt 0:00:02]} O-O {[%emt 0:00:54]} 17. Rfd1 {[%emt 0:00:07]} Rac8 {[%emt 0:00:02]} 18. Bf4 {[%emt 0:01:50]} Nxb3 {[%emt 0:01:37]} 19. cxb3 {[%emt 0:00:02]} Rfd8 {[%emt 0:00:02] Against Bd6} 20. Rxd8+ {[%emt 0:00:17]} Rxd8 {[%emt 0:00:02]} 21. Rd1 {[%emt 0:00:02]} Rxd1+ {[%emt 0:00:08]} 22. Nxd1 {[%emt 0:00:01]} Nd5 {[%emt 0:00:03]} 23. Bd2 {[%emt 0:00:06]} f6 {[%emt 0:00:17]} 24. Ne3 {[%emt 0:00:09]} Nb4 {[%emt 0:00:26]} 25. Nc1 {[%emt 0:00:23]} Kf7 {[%emt 0:00:12]} 26. Kf1 {[%emt 0:00:12]} e5 {[%emt 0:00:19][%cal Be6e5,Be5e4][%mdl 32]} 27. Ke2 {[%emt 0:00:04]} Ke6 {[%emt 0:00:06] Black is more active.} 28. f3 {[%emt 0:00:06]} f5 {[%emt 0:00:21]} 29. a3 {[%emt 0:00:05]} Nd5 {[%emt 0:00:23]} 30. Kd3 {[%emt 0:00:21]} e4+ {[%emt 0:01:02]} 31. Ke2 {[%emt 0:00:21]} g5 {[%emt 0:00:18]} 32. Nxd5 {[%emt 0:01:11]} Bxd5 $17 {[%emt 0:00:06][%mdl 4096] Endgame KBB-KBN} 33. Bc3 {[%emt 0:00:27]} (33. Kf2 $17 {keeps fighting.}) 33... Bd6 $19 {[%emt 0:00:34]} 34. Kf2 {[%emt 0:00:10]} h5 {[%emt 0:00:20]} 35. b4 {[%emt 0:00:03]} (35. Ne2 $17) 35... Be5 {[%emt 0:01:17]} ({Better is} 35... e3+ $19 36. Kxe3 Bxg3) 36. Ne2 $1 $15 {[%emt 0:00:10]} exf3 {[%emt 0:01:10]} 37. gxf3 {[%emt 0:00:01]} Bxc3 {[%emt 0:00:05]} 38. bxc3 {[%emt 0:00:15] [#] KB-KN} Ke5 {[%emt 0:00:08]} (38... Bc4 $1 $17 {[%cal Rc4e2] Threatens to win with ...Bxe2.} 39. Nd4+ Ke5) 39. Ke3 {[%emt 0:00:10]} ({White should try} 39. f4+ $11 Kf6 40. Nd4) 39... h4 {[%emt 0:00:13]} 40. f4+ $2 {[%emt 0:00:35][%mdl 8192] Black converts the advantage convincingly.} (40. gxh4 $15 f4+ 41. Kf2 gxh4 42. Nc1) 40... gxf4+ $19 {[%emt 0:00:01]} 41. gxf4+ {[%emt 0:00:01] [#]} Kd6 $2 {[%emt 0:00:07]} (41... Kf6 $1 $19 42. Kf2 Kg6) 42. Nd4 $2 {[%emt 0:00:14][%mdl 8192]} (42. Kf2 $17) 42... Be4 {[%emt 0:00:04] Black is clearly winning.} 43. Kf2 {[%emt 0:00:39]} Kd5 {[%emt 0:00:01]} 44. Nb3 {[%emt 0:00:02]} Kc4 $1 {[%emt 0:00:18][%csl LRb3,LRc3]} 45. Nc5 {[%emt 0:00:21]} Kxc3 {[%emt 0:00:17]} 46. Nxe4+ {[%emt 0:00:43]} fxe4 {[%emt 0:00:00] KP-KP} 47. f5 {[%emt 0:00:01]} Kd2 {[%emt 0:00:02]} 48. f6 {[%emt 0:00:01]} e3+ {[%emt 0:00:00]} 49. Kg2 {[%emt 0:00:07]} e2 {[%emt 0:00:01]} 50. f7 {[%emt 0:00:01]} e1=Q {[%emt 0:00:02] ( -> ...Qg3+)} 51. f8=Q {[%emt 0:00:02]} Qg3+ {[%emt 0:00:08]} 52. Kf1 {[%emt 0:00:08]} h3 {[%emt 0:00:05][%csl Gh3][%cal Rg3g2]} 53. Qh6+ {[%emt 0:00:06]} Kc2 {[%emt 0:00:06]} 54. Qh7+ {[%emt 0:00:10]} Qd3+ {[%emt 0:00:01] Weighted Error Value: White=0.73/Black=0.28 (precise)} 0-1

[Event "5th Vera Menchik Memorial 2022"]
[Site "Prag"]
[Date "2022.06.05"]
[Round "2.4"]
[White "Sahidi, Samir"]
[Black "Janda, Pavel"]
[Result "1-0"]
[ECO "C74"]
[WhiteElo "2459"]
[BlackElo "2089"]
[Annotator "TA"]
[PlyCount "49"]
[EventDate "2022.06.05"]
[EventType "tourn"]
[EventCountry "CZE"]
[SourceTitle "playchess.com"]
[Source "ChessBase"]
[SourceQuality "1"]
[TimeControl "720+3"]

{[%evp 15,49,49,58,5,101,85,83,89,185,99,421,420,553,562,789,782,836,839,833,825,829,804,839,819,937,940,982,953,969,964,937,787,1156,862,1018,993]} 1. e4 {[%emt 0:00:08]} e5 {[%emt 0:00:02]} 2. Nf3 {[%emt 0:00:02]} Nc6 {[%emt 0:00:01]} 3. Bb5 {[%emt 0:00:02]} a6 {[%emt 0:00:02]} 4. Ba4 {[%emt 0:00:01]} d6 {[%emt 0:00:02]} 5. c3 {[%emt 0:00:45]} f5 {[%emt 0:00:02]} 6. exf5 {[%emt 0:00:21]} Bxf5 {[%emt 0:00:03]} 7. O-O {[%emt 0:00:23]} Bd3 {[%emt 0:00:05]} 8. Re1 {[%emt 0:00:06]} Be7 {[%emt 0:00:02]} 9. Bc2 {[%emt 0:00:06] C74: Ruy Lopez: Deferred Steinitz: 5 c3 f5.} (9. Qb3 $14 b5 10. Qd5) 9... e4 {[%emt 0:00:08]} (9... Bxc2 $11 10. Qxc2 Nf6) 10. Bxd3 $16 {[%emt 0:00:05]} exd3 {[%emt 0:00:02]} 11. Qb3 {[%emt 0:00:17] [#] White is better.} b5 $146 {[%emt 0:01:23]} (11... Qc8 $16) ({Predecessor:} 11... Nf6 12. Qxb7 Na5 13. Qb4 c5 14. Qa4+ Nd7 15. Qe4 Nf6 16. Qxd3 O-O 17. Qe2 Nc6 {1-0 (24) Ghysens,D (2419)-Bubenicek,M (1631) ICCF email 2018}) 12. Qd5 {[%emt 0:00:33]} (12. a4 $18) 12... Qd7 $2 {[%emt 0:00:06][%mdl 8192] [#]} (12... Ne5 $16 {is a better chance.}) 13. Nd4 $18 {[%emt 0:00:14]} Nxd4 {[%emt 0:01:05]} 14. Qxa8+ {[%emt 0:00:03] White is clearly winning.} Kf7 {[%emt 0:00:01]} 15. cxd4 {[%emt 0:00:04]} h5 {[%emt 0:00:31]} 16. Nc3 {[%emt 0:00:16]} Rh6 {[%emt 0:00:04]} 17. Qf3+ {[%emt 0:00:06]} Nf6 {[%emt 0:00:04]} 18. Qxd3 {[%emt 0:00:02]} h4 {[%emt 0:00:12]} 19. h3 {[%emt 0:00:05]} Rg6 {[%emt 0:00:05]} 20. Qf3 {[%emt 0:00:03]} Kg8 {[%emt 0:00:05]} 21. d3 {[%emt 0:00:08]} d5 {[%emt 0:00:06]} 22. Bf4 {[%emt 0:00:05]} c6 {[%emt 0:00:06]} 23. Be5 {[%emt 0:00:11]} Bd6 {[%emt 0:00:08]} 24. Re2 {[%emt 0:00:06]} b4 {[%emt 0:00:14]} 25. Na4 {[%emt 0:00:03] White took control after the opening.  Weighted Error Value: White=0.37/Black=1.32} 1-0

[Event "5th Vera Menchik Memorial 2022"]
[Site "Prag"]
[Date "2022.06.05"]
[Round "2.6"]
[White "Mladek, Richard"]
[Black "Kubikova, Hana"]
[Result "1-0"]
[ECO "E92"]
[WhiteElo "2361"]
[BlackElo "2068"]
[Annotator "TA"]
[PlyCount "75"]
[EventDate "2022.06.05"]
[EventType "tourn"]
[EventCountry "CZE"]
[SourceTitle "playchess.com"]
[Source "ChessBase"]
[SourceQuality "1"]
[TimeControl "720+3"]

{[%evp 17,75,62,79,61,76,71,82,70,70,70,85,76,79,82,78,81,91,64,84,60,58,60,122,73,79,79,69,44,44,44,54,45,56,44,59,44,46,37,28,33,95,95,200,126,323,324,318,189,335,222,329,286,519,471,715,304,1946,1960,1775,1781]} 1. d4 {[%emt 0:00:01]} Nf6 {[%emt 0:00:01]} 2. c4 {[%emt 0:00:00]} g6 {[%emt 0:00:02]} 3. Nc3 {[%emt 0:00:01]} Bg7 {[%emt 0:00:01]} 4. e4 {[%emt 0:00:01]} d6 {[%emt 0:00:02]} 5. Nf3 {[%emt 0:00:01]} O-O {[%emt 0:00:03]} 6. Be2 {[%emt 0:00:02]} e5 {[%emt 0:00:04]} 7. Be3 {[%emt 0:00:01]} Nc6 {[%emt 0:00:11]} 8. d5 {[%emt 0:00:01]} Ne7 {[%emt 0:00:02]} 9. Nd2 {[%emt 0:00:07]} c5 {[%emt 0:00:34]} 10. O-O {[%emt 0:00:20] [#] E92: King's Indian: Classical: 6 Be2 e5: 7 dxe5, 7 Be3 and Petrosian System without 7...Nbd7.} a6 $146 {[%emt 0:00:08]} ({Predecessor:} 10... h5 11. f3 h4 12. a4 Nh5 13. a5 a6 14. Na4 Kh7 15. Nb6 Rb8 16. Qe1 Ng8 17. Rf2 Bh6 {0-1 (38) Suvorov,A (2353)-Manukian,A (2196) Chess.com INT 2020}) 11. a3 {[%emt 0:00:04]} Bd7 {[%emt 0:00:12]} 12. b4 {[%emt 0:00:05] White is better.} b6 {[%emt 0:00:21]} 13. Rb1 {[%emt 0:00:01]} Ne8 {[%emt 0:00:12]} 14. Qc2 {[%emt 0:00:46]} f5 {[%emt 0:00:13]} 15. f3 {[%emt 0:00:15] White is more active.} f4 {[%emt 0:00:13]} 16. Bf2 {[%emt 0:00:01]} g5 {[%emt 0:00:04]} 17. Kh1 {[%emt 0:01:31]} Nf6 {[%emt 0:00:22]} 18. bxc5 {[%emt 0:00:20]} bxc5 {[%emt 0:00:06]} 19. Na4 {[%emt 0:00:19]} Ng6 {[%emt 0:00:56] [#]} (19... Qc7 $14) 20. Nb6 {[%emt 0:00:03]} ({White should try} 20. Nxc5 $1 {[%mdl 512] And now Nb7 would win.} dxc5 21. Bxc5) 20... Rb8 {[%emt 0:00:06]} 21. Nxd7 {[%emt 0:00:02]} Qxd7 {[%emt 0:00:06]} 22. Rxb8 {[%emt 0:00:16]} Rxb8 {[%emt 0:00:02]} 23. Rb1 {[%emt 0:00:01]} Qc7 {[%emt 0:01:18]} 24. Bd1 {[%emt 0:00:10]} h5 {[%emt 0:00:13]} 25. Be1 {[%emt 0:00:30]} g4 {[%emt 0:00:38]} 26. Rb3 {[%emt 0:00:14]} Bf8 {[%emt 0:00:56]} 27. Qb2 {[%emt 0:00:11]} Rxb3 {[%emt 0:00:11]} 28. Nxb3 {[%emt 0:00:03]} Be7 {[%emt 0:00:28] [#]} ({Black should play} 28... Qb7 $14) 29. Na5 $1 $16 {[%emt 0:00:02]} h4 {[%emt 0:00:52]} (29... Kg7 $16) 30. Nc6 {[%emt 0:00:13]} g3 $2 {[%emt 0:00:50] This costs Black the game.} (30... gxf3 $16 {is a better defense.} 31. Bxf3 h3) 31. Ba5 $18 {[%emt 0:00:30]} Qc8 {[%emt 0:00:21]} 32. h3 {[%emt 0:00:05]} (32. Qb6 $142) 32... Kf7 {[%emt 0:00:33]} (32... Nd7 {was worth a try.} 33. Ba4 Kf7) 33. Qb6 {[%emt 0:00:01] Qa7 is the strong threat.} Nd7 {[%emt 0:00:23]} (33... Nf8 $142 34. Na7 Qa8 35. Qxa6 Ng6) 34. Qa7 {[%emt 0:00:11]} Kf8 $2 {[%emt 0:00:32]} (34... Kf6 {might work better.} 35. Ba4 Ngf8) 35. Ba4 {[%emt 0:00:04]} Nf6 {[%emt 0:00:17]} (35... Ke8 $142 36. Nb8 Ngf8) 36. Nb8 {[%emt 0:00:59]} (36. Nxe7 $142 Nxe7 37. Bc7) 36... Nxe4 $2 {[%emt 0:00:30]} (36... Kg8 37. Nc6 (37. Nxa6 Nxe4 38. Qb8 Qxb8 $14) 37... Qe8 38. Qxa6 Kg7) 37. Bd7 {[%emt 0:00:08] A strong pair of Bishops.} ({Weaker is} 37. fxe4 f3 38. Nd7+ (38. Nxa6 $2 {leads to mate.} f2) 38... Kg7 39. gxf3 Qg8 $18) 37... Nf2+ {[%emt 0:00:09]} 38. Kg1 {[%emt 0:00:01] Weighted Error Value: White=0.27 (precise) /Black=0.45} 1-0

[Event "5th Vera Menchik Memorial 2022"]
[Site "Prag"]
[Date "2022.06.05"]
[Round "2.7"]
[White "Bures, Jaroslav"]
[Black "Tichonov, Jiri"]
[Result "1-0"]
[ECO "A80"]
[WhiteElo "2422"]
[BlackElo "2070"]
[Annotator "TA"]
[PlyCount "45"]
[EventDate "2022.06.05"]
[EventType "tourn"]
[EventCountry "CZE"]
[SourceTitle "playchess.com"]
[Source "ChessBase"]
[SourceQuality "1"]
[TimeControl "720+3"]

{[%evp 9,45,41,71,49,78,27,75,68,63,66,95,107,107,106,99,103,171,151,128,136,154,96,124,38,151,158,148,146,253,254,247,246,235,247,224,232,256,258]} 1. d4 {[%emt 0:00:02]} f5 {[%emt 0:00:02]} 2. Nc3 {[%emt 0:00:08]} Nf6 {[%emt 0:00:03]} 3. Bg5 {[%emt 0:00:04]} c6 {[%emt 0:00:24]} 4. e3 {[%emt 0:00:23][%cal Be2e3,Be3e4][%mdl 32]} g6 {[%emt 0:00:14]} 5. h4 {[%emt 0:00:10]} Bg7 {[%emt 0:00:14]} 6. Bd3 {[%emt 0:00:19][%cal Oh4h5] [#] A80: Dutch Defence: Unusual White second moves.} d6 $146 {[%emt 0:00:17]} ({Predecessor:} 6... d5 7. Nf3 Nbd7 8. Ne2 Ne4 9. h5 Nxg5 10. Nxg5 Nf6 11. Nf4 Ne4 12. Bxe4 fxe4 13. hxg6 {1-0 (30) Waldmueller,J (1717)-Pilhoefer,L (1576) Bad Koetzting 2018}) 7. Nf3 {[%emt 0:00:56]} (7. h5 $16) 7... h6 {[%emt 0:00:12]} (7... Nbd7 $11) 8. Bxf6 $16 {[%emt 0:00:11] White is better.} Bxf6 {[%emt 0:00:02]} 9. e4 {[%emt 0:00:01]} e5 {[%emt 0:00:50]} 10. dxe5 {[%emt 0:00:07]} dxe5 {[%emt 0:00:03]} 11. h5 {[%emt 0:00:03]} f4 {[%emt 0:01:26]} 12. hxg6 {[%emt 0:00:06][%cal Of3h4] [#] Black must now prevent Nh4!} Kf8 {[%emt 0:00:01]} (12... Bg4 $16 {was worth a try.}) 13. Bc4 {[%emt 0:00:31] Qxd8+ is the strong threat.} Qxd1+ {[%emt 0:01:01]} 14. Rxd1 {[%emt 0:00:04] aiming for Nh4.} Kg7 {[%emt 0:00:03]} 15. Bf7 {[%emt 0:00:51] White is much more active.} (15. Nh4 $142) 15... Bg4 {[%emt 0:00:29]} 16. Rd2 {[%emt 0:01:07]} ({Don't do} 16. Rd6 Bxf3 17. gxf3 Na6 $14) (16. Rd3 $16) 16... Na6 {[%emt 0:00:41] [#]} (16... Bxf3 $14 17. gxf3 Na6) 17. Nh4 $1 $36 {[%emt 0:00:12][%mdl 2048] White is on the roll.} Rad8 {[%emt 0:00:43]} 18. f3 {[%emt 0:00:34]} Bxh4+ {[%emt 0:00:29]} (18... Bc8 $16 19. Nf5+ Bxf5 20. exf5 Rxd2 21. Kxd2 Nc5) 19. Rxh4 $18 {[%emt 0:00:05] Dancing on a razor blade.} Rxd2 {[%emt 0:00:23]} 20. Kxd2 {[%emt 0:00:04]} Bc8 {[%emt 0:00:06]} 21. Rh5 {[%emt 0:00:37]} Kf6 {[%emt 0:00:21]} 22. Ne2 {[%emt 0:00:42]} Nc5 {[%emt 0:00:45]} 23. Nxf4 {[%emt 0:00:47] Weighted Error Value: White=0.12 (very precise) /Black=0.25 (precise)} 1-0